[Event "*** Titled Tuesday Blitz"]
[Site "Chess.com"]
[Date "2018.09.04"]
[Round "7"]
[White "menor31"]
[Black "Vamostodorecto"]
[Result "0-1"]
[WhiteElo "2447"]
[BlackElo "2415"]
[TimeControl "180+2"]
[EndTime "15:08:14 PDT"]
[Termination "Vamostodorecto won by checkmate"]

1. c4 {[%clk 0:02:59]} 1... e5 {[%clk 0:03:00.1]} 2. g3 {[%clk 0:02:59.8]} 2...
Nc6 {[%clk 0:03:00.6]} 3. Bg2 {[%clk 0:03:01.7]} 3... Bc5 {[%clk 0:03:01.6]} 4.
Nc3 {[%clk 0:03:03]} 4... a6 {[%clk 0:03:00.7]} 5. Nf3 {[%clk 0:03:03.1]} 5...
d6 {[%clk 0:03:01]} 6. O-O {[%clk 0:03:04.2]} 6... Nge7 {[%clk 0:02:59.6]} 7. a3
{[%clk 0:03:04.8]} 7... Ba7 {[%clk 0:02:59.6]} 8. d3 {[%clk 0:03:02.9]} 8... h6
{[%clk 0:02:55.7]} 9. e3 {[%clk 0:03:03.3]} 9... Bg4 {[%clk 0:02:53.2]} 10. Qc2
{[%clk 0:03:03.6]} 10... Qd7 {[%clk 0:02:53.2]} 11. Re1 {[%clk 0:03:03.7]} 11...
Bh3 {[%clk 0:02:53]} 12. Bh1 {[%clk 0:03:04.2]} 12... O-O {[%clk 0:02:51.2]} 13.
b4 {[%clk 0:03:04.2]} 13... f5 {[%clk 0:02:48.9]} 14. b5 {[%clk 0:02:54.2]}
14... axb5 {[%clk 0:02:47.8]} 15. cxb5 {[%clk 0:02:52]} 15... Nd8 {[%clk
0:02:47.3]} 16. d4 {[%clk 0:02:47.7]} 16... e4 {[%clk 0:02:31.8]} 17. Nd2 {[%clk
0:02:45.2]} 17... d5 {[%clk 0:02:29.2]} 18. Nb3 {[%clk 0:02:45.6]} 18... Ne6
{[%clk 0:02:28.5]} 19. a4 {[%clk 0:02:34.5]} 19... f4 {[%clk 0:02:13.7]} 20. Ba3
{[%clk 0:02:28.5]} 20... fxg3 {[%clk 0:02:09.9]} 21. hxg3 {[%clk 0:02:22.8]}
21... Ng5 {[%clk 0:02:05.6]} 22. Bxe7 {[%clk 0:02:21.6]} 22... Nf3+ {[%clk
0:01:42.6]} 23. Bxf3 {[%clk 0:02:19.7]} 23... exf3 {[%clk 0:00:46.8]} 24. Bxf8
{[%clk 0:02:12.8]} 24... Bg2 {[%clk 0:00:31.5]} 25. Qg6 {[%clk 0:02:05.3]} 25...
Rxf8 {[%clk 0:00:30.7]} 26. Qh5 {[%clk 0:02:03.3]} 26... Rf5 {[%clk 0:00:29.5]}
27. Qg4 {[%clk 0:02:03.5]} 27... Qf7 {[%clk 0:00:23.7]} 28. Nxd5 {[%clk
0:01:52.6]} 28... Rxd5 {[%clk 0:00:18.8]} 29. Qc8+ {[%clk 0:01:36.4]} 29... Kh7
{[%clk 0:00:18.3]} 30. g4 {[%clk 0:01:26.1]} 30... Rh5 {[%clk 0:00:14.2]} 31.
gxh5 {[%clk 0:01:25.2]} 31... Qxh5 {[%clk 0:00:16.1]} 32. Qf5+ {[%clk
0:01:16.4]} 32... Qxf5 {[%clk 0:00:16.4]} 33. Nd2 {[%clk 0:01:16.9]} 33... Qh3
{[%clk 0:00:16.4]} 34. Nxf3 {[%clk 0:01:18.8]} 34... Bxf3 {[%clk 0:00:16.7]} 35.
Rec1 {[%clk 0:01:18.6]} 35... Qg2# {[%clk 0:00:16.5]} 0-1

[Event "*** Titled Tuesday Blitz"]
[Site "Chess.com"]
[Date "2018.09.04"]
[Round "7"]
[White "ChainsOfFantasia"]
[Black "Mistheoretical"]
[Result "1-0"]
[WhiteElo "2384"]
[BlackElo "2386"]
[TimeControl "180+2"]
[EndTime "15:08:16 PDT"]
[Termination "ChainsOfFantasia won by resignation"]

1. d4 {[%clk 0:03:01.9]} 1... Nf6 {[%clk 0:03:00.7]} 2. c4 {[%clk 0:02:54.2]}
2... Nc6 {[%clk 0:03:01.5]} 3. Nf3 {[%clk 0:02:54.1]} 3... e6 {[%clk 0:03:02.7]}
4. a3 {[%clk 0:02:55.3]} 4... d6 {[%clk 0:03:03.4]} 5. Nc3 {[%clk 0:02:56.1]}
5... g6 {[%clk 0:03:03.9]} 6. e4 {[%clk 0:02:57.2]} 6... Bg7 {[%clk 0:03:04.6]}
7. Be2 {[%clk 0:02:58.4]} 7... O-O {[%clk 0:03:05.4]} 8. O-O {[%clk 0:02:59.4]}
8... Re8 {[%clk 0:03:06.3]} 9. Be3 {[%clk 0:02:53.8]} 9... e5 {[%clk 0:03:02.5]}
10. d5 {[%clk 0:02:54.7]} 10... Nd4 {[%clk 0:02:59.9]} 11. Nxd4 {[%clk 0:02:24]}
11... exd4 {[%clk 0:03:01.8]} 12. Bxd4 {[%clk 0:02:25.5]} 12... Nxe4 {[%clk
0:03:01.4]} 13. Bxg7 {[%clk 0:02:26.5]} 13... Kxg7 {[%clk 0:03:01.3]} 14. Nxe4
{[%clk 0:02:26.2]} 14... Rxe4 {[%clk 0:03:01.8]} 15. Bd3 {[%clk 0:02:22.9]}
15... Re8 {[%clk 0:02:47.1]} 16. Qb3 {[%clk 0:02:01]} 16... b6 {[%clk
0:02:42.8]} 17. f4 {[%clk 0:01:59.7]} 17... Qf6 {[%clk 0:02:38.3]} 18. f5 {[%clk
0:01:58.9]} 18... g5 {[%clk 0:02:34.3]} 19. Qc2 {[%clk 0:01:29.3]} 19... Qd4+
{[%clk 0:02:19.2]} 20. Kh1 {[%clk 0:01:29.1]} 20... f6 {[%clk 0:02:20.7]} 21.
Rae1 {[%clk 0:01:26.5]} 21... Bd7 {[%clk 0:02:15.6]} 22. Re6 {[%clk 0:01:23.3]}
22... Rac8 {[%clk 0:01:30.6]} 23. Qe2 {[%clk 0:01:05.7]} 23... Bxe6 {[%clk
0:01:19.1]} 24. fxe6 {[%clk 0:01:07.6]} 24... c6 {[%clk 0:01:10.5]} 25. Bxh7
{[%clk 0:01:08.1]} 25... Kxh7 {[%clk 0:00:46.2]} 26. Qh5+ {[%clk 0:01:08.6]}
26... Kg7 {[%clk 0:00:47.8]} 27. Qf7+ {[%clk 0:01:09.9]} 27... Kh6 {[%clk
0:00:49.1]} 28. Rxf6+ {[%clk 0:01:06.1]} 28... Qxf6 {[%clk 0:00:49.3]} 29. Qxf6+
{[%clk 0:01:08]} 29... Kh5 {[%clk 0:00:50.2]} 30. h3 {[%clk 0:01:01.1]} 30...
cxd5 {[%clk 0:00:48.5]} 31. Kh2 {[%clk 0:00:59.7]} 1-0

[Event "*** Titled Tuesday Blitz"]
[Site "Chess.com"]
[Date "2018.09.04"]
[Round "7"]
[White "Barcelona_Guy"]
[Black "farzadbfd"]
[Result "1-0"]
[WhiteElo "2547"]
[BlackElo "2529"]
[TimeControl "180+2"]
[EndTime "15:08:21 PDT"]
[Termination "Barcelona_Guy won on time"]

1. e4 {[%clk 0:03:01.9]} 1... e5 {[%clk 0:03:00.3]} 2. Nf3 {[%clk 0:03:02.8]}
2... Nc6 {[%clk 0:03:00.4]} 3. Bb5 {[%clk 0:03:03.5]} 3... a6 {[%clk 0:02:59.8]}
4. Ba4 {[%clk 0:03:04.7]} 4... Nf6 {[%clk 0:02:49.9]} 5. O-O {[%clk 0:03:05.2]}
5... d6 {[%clk 0:02:49.8]} 6. Bxc6+ {[%clk 0:03:00.8]} 6... bxc6 {[%clk
0:02:50.5]} 7. d4 {[%clk 0:03:02.7]} 7... exd4 {[%clk 0:02:49.9]} 8. Nxd4 {[%clk
0:03:03.1]} 8... c5 {[%clk 0:02:38]} 9. Nc6 {[%clk 0:02:54.8]} 9... Qd7 {[%clk
0:02:34.6]} 10. Na5 {[%clk 0:02:56.3]} 10... Be7 {[%clk 0:02:30.5]} 11. Nc3
{[%clk 0:02:57.1]} 11... O-O {[%clk 0:02:29.8]} 12. Re1 {[%clk 0:02:57.5]} 12...
Re8 {[%clk 0:02:28]} 13. Bf4 {[%clk 0:02:58]} 13... Rb8 {[%clk 0:02:15.6]} 14.
b3 {[%clk 0:02:58.4]} 14... Qg4 {[%clk 0:01:31.9]} 15. Qxg4 {[%clk 0:02:47.5]}
15... Bxg4 {[%clk 0:01:33.8]} 16. h3 {[%clk 0:02:38.7]} 16... Be6 {[%clk
0:01:23.1]} 17. Rad1 {[%clk 0:02:34.4]} 17... Nd7 {[%clk 0:00:56.8]} 18. Nd5
{[%clk 0:02:18.3]} 18... Bxd5 {[%clk 0:00:42.6]} 19. exd5 {[%clk 0:02:20.2]}
19... Bf6 {[%clk 0:00:43.6]} 20. Nc6 {[%clk 0:02:20.4]} 20... Ra8 {[%clk
0:00:41.9]} 21. Kf1 {[%clk 0:02:07.7]} 21... Kf8 {[%clk 0:00:41.9]} 22. c4
{[%clk 0:01:52.4]} 22... Bc3 {[%clk 0:00:22.8]} 23. Bd2 {[%clk 0:01:53.1]} 23...
Bxd2 {[%clk 0:00:17.8]} 24. Rxd2 {[%clk 0:01:54.9]} 24... f6 {[%clk 0:00:19.1]}
25. f4 {[%clk 0:01:50.6]} 25... Rxe1+ {[%clk 0:00:18.5]} 26. Kxe1 {[%clk
0:01:52.5]} 26... Re8+ {[%clk 0:00:19.8]} 27. Kf2 {[%clk 0:01:53.5]} 27... f5
{[%clk 0:00:20.1]} 28. Re2 {[%clk 0:01:29.4]} 28... Rxe2+ {[%clk 0:00:08.8]} 29.
Kxe2 {[%clk 0:01:31.3]} 29... Ke8 {[%clk 0:00:08.8]} 30. g4 {[%clk 0:01:32.4]}
30... g6 {[%clk 0:00:09.9]} 31. Kf3 {[%clk 0:01:33.6]} 31... Kf7 {[%clk
0:00:06.5]} 32. Nd8+ {[%clk 0:01:33.3]} 32... Kf6 {[%clk 0:00:06.7]} 33. Kg3
{[%clk 0:01:11.5]} 1-0

[Event "*** Titled Tuesday Blitz"]
[Site "Chess.com"]
[Date "2018.09.04"]
[Round "7"]
[White "Rashad_Zeynalli"]
[Black "Karina_Oparina"]
[Result "1-0"]
[WhiteElo "2356"]
[BlackElo "2189"]
[TimeControl "180+2"]
[EndTime "15:08:23 PDT"]
[Termination "Rashad_Zeynalli won by resignation"]

1. e4 {[%clk 0:03:01.9]} 1... e5 {[%clk 0:02:58.5]} 2. Nf3 {[%clk 0:03:01.9]}
2... Nc6 {[%clk 0:02:57.3]} 3. Bb5 {[%clk 0:03:02.3]} 3... a6 {[%clk 0:02:55.9]}
4. Ba4 {[%clk 0:03:03]} 4... b5 {[%clk 0:02:54.8]} 5. Bb3 {[%clk 0:03:03.5]}
5... Nf6 {[%clk 0:02:52.9]} 6. Ng5 {[%clk 0:03:02.3]} 6... d5 {[%clk 0:02:51.2]}
7. exd5 {[%clk 0:03:03.3]} 7... Nd4 {[%clk 0:02:48.5]} 8. Nc3 {[%clk 0:02:59.3]}
8... Nxb3 {[%clk 0:02:46.7]} 9. axb3 {[%clk 0:02:58.8]} 9... Bb7 {[%clk
0:02:37.7]} 10. d4 {[%clk 0:02:54.9]} 10... Bb4 {[%clk 0:02:20.5]} 11. O-O
{[%clk 0:02:50.1]} 11... Bxc3 {[%clk 0:02:13]} 12. bxc3 {[%clk 0:02:50.1]} 12...
Nxd5 {[%clk 0:02:13.3]} 13. Qf3 {[%clk 0:02:40.6]} 13... O-O {[%clk 0:02:08.9]}
14. c4 {[%clk 0:02:31]} 14... bxc4 {[%clk 0:01:56.2]} 15. bxc4 {[%clk
0:02:28.9]} 15... Nf4 {[%clk 0:01:57.3]} 16. Qxb7 {[%clk 0:02:27.1]} 16... Qxg5
{[%clk 0:01:56.9]} 17. Bxf4 {[%clk 0:01:49.4]} 17... Qxf4 {[%clk 0:01:49.4]} 18.
Qxc7 {[%clk 0:01:36.4]} 18... Qxd4 {[%clk 0:01:45.4]} 19. Rfe1 {[%clk
0:01:33.4]} 19... Rac8 {[%clk 0:01:32.7]} 20. Qxe5 {[%clk 0:01:24.3]} 20... Qxc4
{[%clk 0:01:19.5]} 21. Re2 {[%clk 0:01:10.4]} 21... h6 {[%clk 0:01:14.7]} 22. h3
{[%clk 0:01:04.6]} 22... Rc5 {[%clk 0:01:14.2]} 23. Qe3 {[%clk 0:00:58.4]} 23...
Rd5 {[%clk 0:01:02.2]} 24. Rd2 {[%clk 0:00:55.4]} 24... Rxd2 {[%clk 0:00:55.9]}
25. Qxd2 {[%clk 0:00:57.3]} 25... Rc8 {[%clk 0:00:56.3]} 26. Qa5 {[%clk
0:00:49.4]} 26... Rc6 {[%clk 0:00:45]} 27. Rc1 {[%clk 0:00:35.7]} 27... Qf4
{[%clk 0:00:38.5]} 28. Rd1 {[%clk 0:00:35.2]} 28... Rxc2 {[%clk 0:00:18.6]} 29.
Qd8+ {[%clk 0:00:35.2]} 29... Kh7 {[%clk 0:00:18.1]} 30. Qd3+ {[%clk 0:00:37.1]}
1-0

[Event "*** Titled Tuesday Blitz"]
[Site "Chess.com"]
[Date "2018.09.04"]
[Round "7"]
[White "BvsN"]
[Black "ItalianMachine"]
[Result "0-1"]
[WhiteElo "2217"]
[BlackElo "2303"]
[TimeControl "180+2"]
[EndTime "15:08:26 PDT"]
[Termination "ItalianMachine won by checkmate"]

1. d4 {[%clk 0:03:01.9]} 1... Nf6 {[%clk 0:03:00.1]} 2. c4 {[%clk 0:03:02.4]}
2... e6 {[%clk 0:02:59.1]} 3. Nc3 {[%clk 0:03:03.5]} 3... Bb4 {[%clk 0:02:59.8]}
4. f3 {[%clk 0:03:04.5]} 4... d5 {[%clk 0:02:59.8]} 5. a3 {[%clk 0:03:05.5]}
5... Bxc3+ {[%clk 0:02:53.7]} 6. bxc3 {[%clk 0:03:06.6]} 6... O-O {[%clk
0:02:55]} 7. cxd5 {[%clk 0:03:07.3]} 7... exd5 {[%clk 0:02:55.8]} 8. e3 {[%clk
0:03:08.5]} 8... c6 {[%clk 0:02:55.2]} 9. Bd3 {[%clk 0:03:09.3]} 9... Re8 {[%clk
0:02:56.5]} 10. Ne2 {[%clk 0:03:10.2]} 10... Qd6 {[%clk 0:02:57.6]} 11. O-O
{[%clk 0:03:08.2]} 11... Nbd7 {[%clk 0:02:57.3]} 12. Ng3 {[%clk 0:03:05.5]}
12... Nf8 {[%clk 0:02:57.5]} 13. e4 {[%clk 0:03:04.8]} 13... dxe4 {[%clk
0:02:48]} 14. fxe4 {[%clk 0:03:05.3]} 14... Qc7 {[%clk 0:02:22.7]} 15. Bf4
{[%clk 0:02:10.6]} 15... Qa5 {[%clk 0:02:21.3]} 16. Qd2 {[%clk 0:01:58.4]} 16...
c5 {[%clk 0:02:17.8]} 17. Bg5 {[%clk 0:01:51.5]} 17... cxd4 {[%clk 0:02:10.7]}
18. Bxf6 {[%clk 0:01:51.4]} 18... gxf6 {[%clk 0:02:12.6]} 19. Rxf6 {[%clk
0:01:07.3]} 19... dxc3 {[%clk 0:02:02]} 20. Qf2 {[%clk 0:00:58.4]} 20... Be6
{[%clk 0:01:59.7]} 21. Kh1 {[%clk 0:00:33.4]} 21... Qb6 {[%clk 0:01:57]} 22. Qf4
{[%clk 0:00:26.2]} 22... Ng6 {[%clk 0:01:01.8]} 23. Qh6 {[%clk 0:00:24.6]} 23...
Kh8 {[%clk 0:01:02]} 24. Nh5 {[%clk 0:00:10.7]} 24... Rg8 {[%clk 0:01:03.1]} 25.
Rff1 {[%clk 0:00:07.3]} 25... Qd4 {[%clk 0:01:02.6]} 26. Bc2 {[%clk 0:00:05.3]}
26... Qd2 {[%clk 0:00:57.9]} 27. Qxd2 {[%clk 0:00:03.7]} 27... cxd2 {[%clk
0:00:59]} 28. Nf6 {[%clk 0:00:05.4]} 28... Rgd8 {[%clk 0:00:59.5]} 29. Rad1
{[%clk 0:00:05.7]} 29... Rac8 {[%clk 0:01:00.5]} 30. Ba4 {[%clk 0:00:04.1]}
30... b5 {[%clk 0:01:01.4]} 31. Bxb5 {[%clk 0:00:04.4]} 31... Bb3 {[%clk
0:01:02.5]} 32. Ba6 {[%clk 0:00:03]} 32... Bxd1 {[%clk 0:01:01.6]} 33. Bxc8
{[%clk 0:00:04.1]} 33... Be2 {[%clk 0:01:02.7]} 34. Rg1 {[%clk 0:00:02.9]} 34...
d1=Q {[%clk 0:01:03.4]} 35. Rxd1 {[%clk 0:00:04.5]} 35... Rxd1# {[%clk
0:01:03.6]} 0-1

[Event "*** Titled Tuesday Blitz"]
[Site "Chess.com"]
[Date "2018.09.04"]
[Round "7"]
[White "volcanoexplorer"]
[Black "chess_rehab"]
[Result "1-0"]
[WhiteElo "2320"]
[BlackElo "2224"]
[TimeControl "180+2"]
[EndTime "15:08:29 PDT"]
[Termination "volcanoexplorer won by resignation"]

1. e4 {[%clk 0:03:01.9]} 1... c5 {[%clk 0:03:00.5]} 2. Nf3 {[%clk 0:03:03.3]}
2... d6 {[%clk 0:03:01.6]} 3. d4 {[%clk 0:03:03.4]} 3... cxd4 {[%clk 0:03:02.3]}
4. Nxd4 {[%clk 0:03:03.7]} 4... Nf6 {[%clk 0:03:02.9]} 5. Nc3 {[%clk 0:03:04.9]}
5... g6 {[%clk 0:03:04.5]} 6. Be3 {[%clk 0:03:04.3]} 6... Bg7 {[%clk 0:03:05.7]}
7. f3 {[%clk 0:02:56.9]} 7... Nc6 {[%clk 0:03:06.6]} 8. Qd2 {[%clk 0:02:57.2]}
8... O-O {[%clk 0:03:07.2]} 9. Bc4 {[%clk 0:02:58.4]} 9... Bd7 {[%clk
0:03:07.7]} 10. h4 {[%clk 0:02:59.5]} 10... Ne5 {[%clk 0:03:08.6]} 11. Bb3
{[%clk 0:03:00]} 11... Qa5 {[%clk 0:03:09.5]} 12. O-O-O {[%clk 0:02:59]} 12...
Rfc8 {[%clk 0:03:09.8]} 13. Bg5 {[%clk 0:02:43.7]} 13... Rab8 {[%clk 0:02:34]}
14. Kb1 {[%clk 0:02:26.7]} 14... b5 {[%clk 0:02:33.2]} 15. Bxf6 {[%clk
0:02:25.6]} 15... Bxf6 {[%clk 0:02:33.3]} 16. Nd5 {[%clk 0:02:26.1]} 16... Qxd2
{[%clk 0:02:34.5]} 17. Nxf6+ {[%clk 0:02:26.6]} 17... Kg7 {[%clk 0:02:35.9]} 18.
Rxd2 {[%clk 0:02:28.1]} 18... Kxf6 {[%clk 0:02:34.6]} 19. h5 {[%clk 0:02:23.1]}
19... a5 {[%clk 0:02:24.5]} 20. hxg6 {[%clk 0:02:18.6]} 20... hxg6 {[%clk
0:02:22.9]} 21. Ne2 {[%clk 0:02:14.8]} 21... a4 {[%clk 0:02:21.1]} 22. f4 {[%clk
0:02:08.6]} 22... Ng4 {[%clk 0:01:57.1]} 23. Bd5 {[%clk 0:02:02.5]} 23... e6
{[%clk 0:01:57.6]} 24. e5+ {[%clk 0:01:56]} 24... Kg7 {[%clk 0:01:58.7]} 25. Bf3
{[%clk 0:01:55.5]} 25... Nh6 {[%clk 0:01:43.6]} 26. Rxd6 {[%clk 0:01:54.5]}
26... Be8 {[%clk 0:01:39]} 27. g4 {[%clk 0:01:55.1]} 27... b4 {[%clk 0:01:36.2]}
28. b3 {[%clk 0:01:32.7]} 28... a3 {[%clk 0:01:26.9]} 29. Ng3 {[%clk 0:01:29.6]}
29... Rc3 {[%clk 0:01:24.1]} 30. g5 {[%clk 0:01:06.7]} 30... Rxf3 {[%clk
0:01:18.5]} 31. gxh6+ {[%clk 0:01:07.1]} 31... Kh7 {[%clk 0:01:17.6]} 32. Ne4
{[%clk 0:01:06.2]} 32... Rxf4 {[%clk 0:01:12]} 33. Nf6+ {[%clk 0:00:59]} 33...
Kh8 {[%clk 0:01:12.3]} 34. Rhd1 {[%clk 0:00:56.7]} 34... Rxf6 {[%clk 0:00:58.7]}
35. exf6 {[%clk 0:00:57.2]} 35... Kh7 {[%clk 0:00:59.4]} 36. Rd8 {[%clk
0:00:54.5]} 36... Rxd8 {[%clk 0:00:58]} 37. Rxd8 {[%clk 0:00:56.4]} 37... Bc6
{[%clk 0:00:56.6]} 38. Rf8 {[%clk 0:00:56.5]} 38... Kxh6 {[%clk 0:00:57.5]} 39.
Rxf7 {[%clk 0:00:57.7]} 39... Kg5 {[%clk 0:00:58.3]} 40. Rc7 {[%clk 0:00:58.7]}
40... Kxf6 {[%clk 0:00:55.5]} 41. Rxc6 {[%clk 0:00:59.6]} 41... g5 {[%clk
0:00:57]} 42. Kc1 {[%clk 0:01:00.8]} 42... g4 {[%clk 0:00:57.8]} 43. Kd1 {[%clk
0:01:02.2]} 43... Ke5 {[%clk 0:00:58.7]} 44. Ke2 {[%clk 0:01:03]} 44... g3
{[%clk 0:01:00.1]} 45. Kf3 {[%clk 0:01:03.8]} 45... Kd4 {[%clk 0:01:01.5]} 46.
Kxg3 {[%clk 0:01:04.9]} 46... e5 {[%clk 0:01:02.7]} 47. Kf3 {[%clk 0:01:05]}
47... e4+ {[%clk 0:01:03]} 48. Ke2 {[%clk 0:01:05.8]} 48... Kd5 {[%clk
0:01:04.3]} 49. Rc4 {[%clk 0:01:07.7]} 49... e3 {[%clk 0:01:04.6]} 50. Kxe3
{[%clk 0:01:09.6]} 1-0

[Event "*** Titled Tuesday Blitz"]
[Site "Chess.com"]
[Date "2018.09.04"]
[Round "7"]
[White "Kimster98"]
[Black "bugsbunny444"]
[Result "0-1"]
[WhiteElo "2470"]
[BlackElo "2437"]
[TimeControl "180+2"]
[EndTime "15:08:33 PDT"]
[Termination "bugsbunny444 won by resignation"]

1. e4 {[%clk 0:03:01.9]} 1... c5 {[%clk 0:02:59.3]} 2. Nf3 {[%clk 0:03:02.9]}
2... e6 {[%clk 0:03:00.6]} 3. d4 {[%clk 0:03:00.9]} 3... cxd4 {[%clk 0:03:02.5]}
4. Nxd4 {[%clk 0:03:02.8]} 4... a6 {[%clk 0:03:04.2]} 5. c4 {[%clk 0:03:03.5]}
5... Nf6 {[%clk 0:03:05.1]} 6. Nc3 {[%clk 0:03:04.9]} 6... Qc7 {[%clk
0:03:06.2]} 7. Be2 {[%clk 0:03:00.1]} 7... Bb4 {[%clk 0:03:07]} 8. Qd3 {[%clk
0:02:56.9]} 8... d6 {[%clk 0:03:04]} 9. f3 {[%clk 0:02:51.5]} 9... Nbd7 {[%clk
0:03:02.6]} 10. a3 {[%clk 0:02:47.6]} 10... Ne5 {[%clk 0:02:52]} 11. Qc2 {[%clk
0:02:47.3]} 11... Bc5 {[%clk 0:02:49.8]} 12. Be3 {[%clk 0:02:43.9]} 12... Nxc4
{[%clk 0:02:15.5]} 13. Bxc4 {[%clk 0:02:41.8]} 13... Bxd4 {[%clk 0:02:16.1]} 14.
Bxd4 {[%clk 0:02:42.4]} 14... Qxc4 {[%clk 0:02:17.6]} 15. Qd2 {[%clk 0:02:41.2]}
15... Bd7 {[%clk 0:01:13.7]} 16. Bxf6 {[%clk 0:02:34.3]} 16... gxf6 {[%clk
0:01:15.6]} 17. Qxd6 {[%clk 0:02:35.8]} 17... O-O-O {[%clk 0:00:29.5]} 18. Qd2
{[%clk 0:00:56.9]} 18... Bc6 {[%clk 0:00:22.6]} 19. Qe2 {[%clk 0:00:56.8]} 19...
Rd3 {[%clk 0:00:20.5]} 20. Rc1 {[%clk 0:00:26.6]} 20... Qd4 {[%clk 0:00:21.6]}
21. Nd1 {[%clk 0:00:20.7]} 21... Rd8 {[%clk 0:00:17.3]} 22. g4 {[%clk
0:00:07.9]} 22... Rd2 {[%clk 0:00:11.7]} 23. Qe3 {[%clk 0:00:03.9]} 23... Rxd1+
{[%clk 0:00:11.8]} 0-1

[Event "*** Titled Tuesday Blitz"]
[Site "Chess.com"]
[Date "2018.09.04"]
[Round "7"]
[White "gkchesstiger"]
[Black "aquaticpineapples"]
[Result "1-0"]
[WhiteElo "2754"]
[BlackElo "2018"]
[TimeControl "180+2"]
[EndTime "15:08:42 PDT"]
[Termination "gkchesstiger won on time"]

1. d4 {[%clk 0:03:01.9]} 1... d5 {[%clk 0:03:00.6]} 2. Bf4 {[%clk 0:03:01.6]}
2... c5 {[%clk 0:02:59.9]} 3. e3 {[%clk 0:03:01.8]} 3... e6 {[%clk 0:02:57.6]}
4. c3 {[%clk 0:03:01.5]} 4... Nf6 {[%clk 0:02:58]} 5. Nd2 {[%clk 0:03:01.7]}
5... Nc6 {[%clk 0:02:58.7]} 6. Ngf3 {[%clk 0:03:00.4]} 6... Bd6 {[%clk 0:02:59]}
7. Bg3 {[%clk 0:03:00.1]} 7... O-O {[%clk 0:02:58.9]} 8. Bd3 {[%clk 0:03:00.1]}
8... Re8 {[%clk 0:02:53.8]} 9. Ne5 {[%clk 0:03:00]} 9... Qc7 {[%clk 0:02:45.3]}
10. f4 {[%clk 0:03:00.3]} 10... Ne7 {[%clk 0:02:35.6]} 11. Bf2 {[%clk
0:02:36.9]} 11... b6 {[%clk 0:02:13.1]} 12. g4 {[%clk 0:02:22]} 12... Bb7 {[%clk
0:02:06.4]} 13. Qf3 {[%clk 0:02:22.5]} 13... Nd7 {[%clk 0:01:14.7]} 14. Qh3
{[%clk 0:02:02]} 14... Nf8 {[%clk 0:01:13.1]} 15. g5 {[%clk 0:01:49.8]} 15...
cxd4 {[%clk 0:01:00.7]} 16. exd4 {[%clk 0:01:49.3]} 16... Nf5 {[%clk 0:00:56.4]}
17. Qg4 {[%clk 0:01:34.9]} 17... a6 {[%clk 0:00:46.4]} 18. h4 {[%clk 0:01:34.2]}
18... b5 {[%clk 0:00:44.8]} 19. a3 {[%clk 0:01:34.5]} 19... Rab8 {[%clk
0:00:39.1]} 20. h5 {[%clk 0:01:34.7]} 20... Bxe5 {[%clk 0:00:35]} 21. fxe5
{[%clk 0:01:34.9]} 21... Bc8 {[%clk 0:00:34.4]} 22. Nb3 {[%clk 0:01:15]} 22...
a5 {[%clk 0:00:30.5]} 23. Nc5 {[%clk 0:01:15.5]} 23... b4 {[%clk 0:00:28.9]} 24.
cxb4 {[%clk 0:01:15.8]} 24... axb4 {[%clk 0:00:29.9]} 25. a4 {[%clk 0:01:17.2]}
25... b3 {[%clk 0:00:21.5]} 26. O-O {[%clk 0:01:13.6]} 26... Bd7 {[%clk
0:00:17.2]} 27. Rfc1 {[%clk 0:01:13.5]} 27... Qb6 {[%clk 0:00:13.5]} 28. a5
{[%clk 0:01:13.4]} 28... Qb4 {[%clk 0:00:13.3]} 29. a6 {[%clk 0:01:12.7]} 29...
Bb5 {[%clk 0:00:11.5]} 30. Bxf5 {[%clk 0:00:45.2]} 30... exf5 {[%clk 0:00:07]}
31. Qxf5 {[%clk 0:00:45.9]} 31... Qd2 {[%clk 0:00:06.6]} 32. h6 {[%clk
0:00:44.4]} 1-0